fUSD/lending_fUSD_20240508
["ID","MTS","AMOUNT","RATE_DAILY","PERIOD"]
[326635805,1715174724063,-179.52514134,0.00012797,2]
[326635806,1715174725285,-10000.0,0.00012797,2]
[326635844,1715175035539,-220.5413736,0.00012699,2]
[326635850,1715175035692,-63.09363483,0.000127,2]
[326635851,1715175035707,-96.52704591,0.000127,2]
[326635852,1715175035717,-159.62068072,0.00012733,2]
[326635853,1715175035728,-159.62068072,0.00012766,2]
[326635854,1715175035738,-324.0546186,0.00012795,2]
[326635855,1715175035748,-3395.601,0.00012797,2]
[326635856,1715175035759,-159.62068072,0.00012799,2]
[326635857,1715175035769,-26725.12855549,0.000128,2]
[326635858,1715175035781,-1064.71783951,0.000128,2]
[326635859,1715175035809,-1335.28216049,0.000128,2]
[326635860,1715175035822,-2193.07254094,0.000128,2]
[326635861,1715175035834,-56506.72741348,0.000128,2]
[326635862,1715175035846,-253.083484,0.000128,2]
[326635863,1715175035859,-3813.695592,0.000128,2]
[326635867,1715175041326,-3015.70000002,0.000128,2]
[326635870,1715175042739,-5011.6,0.000128,2]
[326635871,1715175042764,-69287.44621407,0.000128,2]
[326635872,1715175042774,-159.62068072,0.00012832,2]
[326635873,1715175042784,-159.62068072,0.00012865,2]
[326635874,1715175042795,-1798.85,0.00012865,2]
[326635875,1715175042804,-159.62068072,0.00012898,2]
[326635876,1715175042816,-1882.7559,0.00012898,2]
[326635877,1715175042826,-111481.94739924,0.000129,2]
[326635878,1715175042838,-11356.98862744,0.000129,2]
[326635900,1715175045506,-824.30758099,0.000129,2]
[326635901,1715175045696,-19555.85361993,0.000129,2]
[326635903,1715175045708,-1053.14320545,0.000129,2]
[326635904,1715175045719,-16751.07695126,0.000129,2]
[326635905,1715175045731,-2942.61627244,0.000129,2]
[326635906,1715175045742,-7796.768824,0.000129,2]
[326635907,1715175045754,-683.49212633,0.000129,2]
[326635909,1715175046993,-386.7847,0.000129,2]
[326635915,1715175047006,-2762.66955118,0.000129,2]
[326635921,1715175047021,-886.45947666,0.000129,2]
[326635926,1715175047034,-6124.74064856,0.000129,2]
[326636114,1715175048965,-15890.59367487,0.000129,2]
[326636117,1715175048981,-24599.85944165,0.000129,2]
[326636118,1715175048996,-304.63612664,0.00012998,2]
[326636119,1715175049008,-563.11568634,0.00012999,2]
[326636120,1715175049018,-926.78368675,0.00012999,2]
[326636121,1715175049028,-1004.10950933,0.00013698,2]
[326636122,1715175049038,-245.67,0.00014005,2]
[326636123,1715175049047,-499.99,0.00014005,2]
[326636124,1715175049057,-350.06,0.00014487,2]
[326636125,1715175049067,-150.16,0.00015442,2]
[326636126,1715175049080,-2729.0,0.000167,2]
[326636127,1715175049090,-350.06,0.00017227,2]
[326636128,1715175049099,-1135.11001957,0.0001788,2]
[326636129,1715175049108,-1135.1100195,0.0001788,2]
[326636130,1715175049118,-1135.1100195,0.0001788,2]
[326636131,1715175049128,-1135.1100195,0.0001788,2]
[326636132,1715175049138,-750.0,0.00018,3]
[326636133,1715175049148,-176.84,0.00018788,2]
[326636134,1715175049158,-178.45,0.00018876,2]
[326636135,1715175049168,-314.32695261,0.00018944,2]
[326636136,1715175049178,-643.69,0.00018976,2]
[326636137,1715175049188,-5000.0,0.00019,2]
[326636138,1715175049198,-516.52,0.00019044,2]
[326636139,1715175049208,-1197.38,0.00019066,2]
[326636140,1715175049217,-7055.63,0.00019066,2]
[326636141,1715175049227,-1211.11,0.00019066,2]
[326636142,1715175049236,-200.0,0.00019066,2]
[326636143,1715175049245,-1500.0,0.00019112,2]
[326636144,1715175049268,-215.65,0.00019178,2]
[326636145,1715175049278,-255.31,0.00019178,2]
[326636146,1715175049288,-428.68,0.00019264,2]
[326636147,1715175049297,-1135.1100195,0.00019456,2]
[326636148,1715175049308,-168.12,0.00019697,2]
[326636149,1715175049317,-314.32695259,0.00019758,2]
[326636150,1715175049328,-155.91436645,0.00019798,5]
[326636151,1715175049338,-178.45,0.00019859,2]
[326636152,1715175049346,-350.06,0.00019966,2]
[326636153,1715175049355,-800.0,0.0002,3]
[326636154,1715175049366,-155.0,0.0002,2]
[326636155,1715175049375,-1770.43044414,0.0002,2]
[326636156,1715175049384,-1542.9106721,0.0002,2]
[326636157,1715175049399,-3636.49251398,0.0002,2]
[326636158,1715175049409,-314.32695259,0.00020572,2]
[326636159,1715175049418,-366.80411132,0.00021,2]
[326636160,1715175049427,-878.37642211,0.00021144,2]
[326636161,1715175049442,-256.73359739,0.00021144,2]
[326636162,1715175049451,-314.32695259,0.00021387,2]
[326636163,1715175049461,-516.52,0.00021424,2]
[326636164,1715175049471,-219.94,0.00021589,15]
[326636165,1715175049480,-900.0,0.000217,7]
[326636166,1715175049489,-1561.86172371,0.00021748,2]
[326636167,1715175049499,-463.76718743,0.00021778,2]
[326636168,1715175049509,-500.0,0.00021779,2]
[326636169,1715175049518,-225.13615698,0.00021779,2]
[326636170,1715175049528,-1849.2143844,0.0002178,2]
[326636171,1715175049539,-12281.394,0.0002178,2]
[326636172,1715175049572,-22877.25346981,0.0002178,2]
[326636173,1715175049581,-1800.0,0.000218,7]
[326636174,1715175049591,-3500.94133622,0.00021837,2]
[326636175,1715175049601,-155.0,0.00021899,2]
[326636176,1715175049610,-167.04192647,0.00021899,2]
[326636177,1715175049619,-2800.0,0.000219,7]
[326636178,1715175049629,-674.3265,0.000219,2]
[326636179,1715175049638,-156.02869598,0.000219,2]
[326636180,1715175049647,-500.0,0.000219,2]
[326636181,1715175049657,-214.0,0.000219,2]
[326636182,1715175049667,-6762.66945982,0.000219,2]
[326636183,1715175049676,-174.97356151,0.000219,2]
[326636184,1715175049686,-250.0,0.00021918,2]
[326636185,1715175049695,-250.0,0.00021918,2]
[326636186,1715175049705,-2000.0,0.00021918,2]
[326636187,1715175049715,-151.28,0.0002199,2]
[326636188,1715175049724,-151.28,0.0002199,2]
[326636189,1715175049734,-151.28,0.0002199,2]
[326636190,1715175049743,-151.28,0.0002199,2]
[326636191,1715175049752,-35306.4644968,0.00021998,2]
[326636192,1715175049762,-155.0,0.00021998,2]
[326636193,1715175049772,-23374.48506047,0.00021998,5]
[326636194,1715175049781,-861.15298336,0.00021998,2]
[326636195,1715175049790,-6224.61349553,0.00021998,2]
[326636196,1715175049800,-397.16117121,0.00021998,2]
[326636197,1715175049809,-341.08871656,0.00021998,2]
[326636198,1715175049821,-2210.05511976,0.00021998,2]
[326636199,1715175049830,-538.81220772,0.00021998,2]
[326636200,1715175049840,-87411.37623324,0.00021998,2]
[326636201,1715175049850,-2029.81619606,0.00021999,2]
[326636202,1715175049859,-72665.57722296,0.00022,2]
[326636203,1715175049871,-914.04516044,0.00022,2]
[326636204,1715175049883,-1278.08174437,0.00022,2]
[326636205,1715175049893,-866.57163133,0.00022,2]
[326636206,1715175049904,-17489.53389062,0.00022,2]
[326636207,1715175049916,-5961.52256356,0.00022,2]
[326636208,1715175049930,-415.68909921,0.00022,2]
[326636209,1715175049941,-621.61,0.00022,2]
[326636210,1715175049953,-373.72348574,0.00022,2]
[326636211,1715175049964,-685.50165271,0.00022,2]
[326636212,1715175049976,-666144.62079702,0.00022,2]
[326636213,1715175049988,-400109.06800107,0.00022,2]
[326636214,1715175049997,-2215.11343661,0.00022,2]
[326636215,1715175050008,-546.4241888,0.00022,2]
[326636216,1715175050019,-18738.40099752,0.00022,2]
[326636217,1715175050028,-850.0,0.00022,3]
[326636218,1715175050037,-1065.6057,0.00022,2]
[326636219,1715175050053,-314.32695259,0.00022201,2]
[326636220,1715175050062,-9445.8574752,0.00022445,2]
[326636221,1715175050073,-1135.1100195,0.00022833,2]
[326636222,1715175050083,-314.32695259,0.00023015,2]
[326636223,1715175050231,-1000.0,0.00023357,2]
[326636224,1715175050242,-1182.63643324,0.00023614,2]
[326636225,1715175050252,-516.52,0.00023805,2]
[326636226,1715175050261,-9445.8574752,0.00023809,2]
[326636227,1715175050271,-314.32695259,0.00023829,2]
[326636228,1715175050281,-1072.44064238,0.00024,2]
[326636229,1715175050290,-180.0,0.0002423,2]
[326636230,1715175050299,-1135.1100195,0.00024522,2]
[326636231,1715175050308,-168.12,0.00024621,2]
[326636232,1715175050317,-314.32695259,0.00024643,2]
[326636233,1715175050328,-800.0,0.00024849,2]
[326636234,1715175050337,-174.97356151,0.000249,2]
[326636235,1715175050347,-800.0,0.00024986,2]
[326636236,1715175050356,-9141.6134401,0.0002499,2]
[326636237,1715175050365,-471.76227117,0.00025,2]
[326636238,1715175050374,-2219.11364841,0.00025,2]
[326636239,1715175050383,-350.7634426,0.00025,2]
[326636240,1715175050392,-155.0,0.00025,2]
[326636241,1715175050402,-919.46107743,0.00025,2]
[326636242,1715175050411,-9445.8574752,0.00025173,2]
[326636243,1715175050420,-219.94,0.00025325,15]
[326636244,1715175050430,-162.47,0.00025379,2]
[326636245,1715175050438,-255.31,0.00025379,2]
[326636246,1715175050448,-314.32695259,0.00025457,2]
[326636247,1715175050457,-200.0,0.00025749,2]
[326636248,1715175050466,-1182.63643324,0.00025757,2]
[326636249,1715175050476,-988.0,0.00026027,2]
[326636250,1715175050485,-1328.0,0.00026048,2]
[326636251,1715175050494,-516.52,0.00026185,2]
[326636252,1715175050504,-1135.1100195,0.00026211,2]
[326636253,1715175050512,-314.32695259,0.00026272,2]
[326636254,1715175050522,-9445.8574752,0.00026536,2]
[326636255,1715175050531,-9193.91734047,0.00026681,2]
[326636256,1715175050541,-150.0,0.00026964,2]
[326636257,1715175050550,-1741.42627628,0.00027,2]
[326636258,1715175050559,-1065.60571,0.00027,2]
[326636259,1715175050572,-314.32695259,0.00027086,2]
[326636260,1715175050581,-1000.0,0.00027297,2]
[326636261,1715175050590,-10000.0,0.00027297,2]
[326636262,1715175050599,-3700.0,0.000273,9]
[326636263,1715175050608,-486.0,0.00027344,2]
[326636264,1715175050617,-151.28,0.00027387,2]
[326636265,1715175050645,-31923.58853006,0.00027397,7]
[326636266,1715175050655,-500.0,0.00027397,2]
[326636267,1715175050664,-500.72551906,0.00027397,2]
[326636268,1715175050673,-237.05,0.00027397,2]
[326636269,1715175050682,-284.90768232,0.00027397,2]
[326636270,1715175050691,-503.75554078,0.00027397,2]
[326636271,1715175050700,-505.7645558,0.00027397,2]
[326636272,1715175050710,-503.50576401,0.00027397,2]
[326636273,1715175050719,-500.0,0.00027397,2]
[326636274,1715175050729,-242.28,0.00027397,2]
[326636275,1715175050738,-500.0,0.00027397,2]
[326636276,1715175050747,-500.0,0.00027397,2]
[326636277,1715175050756,-1837.81,0.00027397,2]
[326636278,1715175050766,-345.66,0.00027397,2]
[326636279,1715175050775,-502.63455759,0.00027397,2]
[326636280,1715175050784,-500.0,0.00027397,2]
[326636281,1715175050793,-502.66261284,0.00027397,2]
[326636282,1715175050803,-500.0,0.00027397,2]
[326636283,1715175050812,-505.9651269,0.00027397,2]
[326636284,1715175050822,-500.0,0.00027397,2]
[326636285,1715175050832,-540.2,0.00027397,2]
[326636286,1715175050840,-399.01,0.00027397,2]
[326636287,1715175050850,-476.65290852,0.00027397,2]
[326636288,1715175050859,-520.88919129,0.00027397,2]
[326636289,1715175050868,-223.28065075,0.00027397,2]
[326636290,1715175050878,-2000.0,0.00027397,2]
[326636291,1715175050887,-502.90613589,0.00027397,2]
[326636292,1715175050896,-500.0,0.00027397,2]
[326636293,1715175050905,-192.55,0.00027397,2]
[326636294,1715175050914,-511.56401665,0.00027397,2]
[326636295,1715175050923,-500.0,0.00027397,2]
[326636296,1715175050936,-412.55,0.00027397,2]
[326636297,1715175050946,-505.11207184,0.00027397,2]
[326636298,1715175050955,-509.27689411,0.00027397,2]
[326636299,1715175050964,-5000.0,0.00027397,2]
[326636300,1715175050975,-500.0,0.00027397,2]
[326636301,1715175050984,-500.0,0.00027397,2]
[326636302,1715175050993,-500.0,0.00027397,2]
[326636303,1715175051003,-504.36150638,0.00027397,2]
[326636304,1715175051014,-511.31361649,0.00027397,2]
[326636305,1715175051023,-502.27119417,0.00027397,2]
[326636306,1715175051033,-500.0,0.00027397,2]
[326636307,1715175051042,-510.49639549,0.00027397,2]
[326636308,1715175051051,-500.0,0.00027397,2]
[326636309,1715175051060,-500.0,0.00027397,2]
[326636310,1715175051069,-500.0,0.00027397,2]
[326636311,1715175051080,-500.0,0.00027397,2]
[326636312,1715175051090,-505.69913641,0.00027397,2]
[326636313,1715175051099,-500.0,0.00027397,2]
[326636314,1715175051108,-500.0,0.00027397,2]
[326636315,1715175051119,-504.94676363,0.00027397,2]
[326636316,1715175051128,-500.0,0.00027397,2]
[326636317,1715175051138,-528.73388229,0.00027397,2]
[326636318,1715175051147,-504.57653448,0.00027397,2]
[326636319,1715175051156,-500.0,0.00027397,2]
[326636320,1715175051165,-625.08,0.00027397,2]
[326636321,1715175051174,-500.0,0.00027397,2]
[326636322,1715175051183,-500.0,0.00027397,2]
[326636327,1715175051193,-178.08944478,0.00027397,2]
[326636329,1715175051213,-500.0,0.00027397,2]
[326636331,1715175051223,-500.0,0.00027397,2]
[326636333,1715175051232,-502.53839625,0.00027397,2]
[326636335,1715175051243,-3640.68,0.00027397,2]
[326636337,1715175051253,-510.42285701,0.00027397,2]
[326636340,1715175051263,-500.0,0.00027397,2]
[326636343,1715175051272,-504.16890173,0.00027397,2]
[326636345,1715175051282,-500.0,0.00027397,2]
[326636346,1715175051291,-503.97640729,0.00027397,2]
[326636347,1715175051300,-500.0,0.00027397,2]
[326636348,1715175051310,-515.62218978,0.00027397,2]
[326636349,1715175051320,-280.07,0.00027397,2]
[326636350,1715175051331,-500.0,0.00027397,2]
[326636351,1715175051341,-500.0,0.00027397,2]
[326636352,1715175051350,-504.75076759,0.00027397,2]
[326636353,1715175051360,-611.85,0.00027397,2]
[326636354,1715175051369,-500.0,0.00027397,2]
[326636355,1715175051379,-500.0,0.00027397,2]
[326636356,1715175051389,-500.0,0.00027397,2]
[326636357,1715175051399,-255.50437266,0.00027397,2]
[326636358,1715175051408,-290.87,0.00027397,2]
[326636359,1715175051418,-502.04171945,0.00027397,2]
[326636360,1715175051427,-191.58,0.00027397,2]
[326636361,1715175051437,-500.0,0.00027397,2]
[326636362,1715175051446,-500.0,0.00027397,2]
[326636363,1715175051455,-503.18,0.00027397,2]
[326636364,1715175051465,-500.0,0.00027397,2]
[326636367,1715175051475,-500.0,0.00027397,2]
[326636369,1715175051484,-500.0,0.00027397,2]
[326636371,1715175051493,-500.0,0.00027397,2]
[326636373,1715175051502,-500.0,0.00027397,2]
[326636375,1715175051512,-1837.82,0.00027397,2]
[326636377,1715175051522,-500.0,0.00027397,2]
[326636379,1715175051531,-1770.0,0.00027397,2]
[326636381,1715175051541,-500.0,0.00027397,2]
[326636383,1715175051550,-458.11,0.00027397,2]
[326636385,1715175051560,-500.0,0.00027397,2]
[326636387,1715175051569,-384.57,0.00027397,2]
[326636389,1715175051582,-500.0,0.00027397,2]
[326636391,1715175051591,-529.27,0.00027397,2]
[326636393,1715175051601,-500.0,0.00027397,2]
[326636395,1715175051610,-206.50185656,0.00027397,2]
[326636397,1715175051620,-313.41,0.00027397,2]
[326636399,1715175051629,-500.0,0.00027397,2]
[326636401,1715175051639,-500.0,0.00027397,2]
[326636403,1715175051649,-500.0,0.00027397,2]
[326636405,1715175051659,-296.11,0.00027397,2]
[326636407,1715175051672,-500.0,0.00027397,2]
[326636409,1715175051682,-512.94173499,0.00027397,2]
[326636411,1715175051692,-869.64,0.00027397,2]
[326636413,1715175051702,-583.44,0.00027397,2]
[326636415,1715175051711,-326.06,0.00027397,2]
[326636417,1715175051721,-500.0,0.00027397,2]
[326636419,1715175051730,-500.0,0.00027397,2]
[326636421,1715175051740,-500.0,0.00027397,2]
[326636423,1715175051750,-300.0,0.00027397,2]
[326636425,1715175051759,-500.0,0.00027397,2]
[326636427,1715175051769,-624.75,0.00027397,2]
[326636430,1715175051778,-500.0,0.00027397,2]
[326636432,1715175051788,-425.54641356,0.00027397,2]
[326636434,1715175051797,-500.0,0.00027397,2]
[326636436,1715175051806,-295.7,0.00027397,2]
[326636438,1715175051815,-500.0,0.00027397,2]
[326636440,1715175051827,-500.0,0.00027397,2]
[326636442,1715175051836,-500.0,0.00027397,2]
[326636444,1715175051846,-1538.52,0.00027397,2]
[326636446,1715175051855,-500.0,0.00027397,2]
[326636448,1715175051864,-500.0,0.00027397,2]
[326636450,1715175051874,-500.0,0.00027397,2]
[326636451,1715175051884,-500.0,0.00027397,2]
[326636452,1715175051894,-500.0,0.00027397,2]
[326636453,1715175051903,-500.0,0.00027397,2]
[326636454,1715175051913,-901.88,0.00027397,2]
[326636455,1715175051922,-1547.48,0.00027397,2]
[326636456,1715175051936,-112.95292223,0.00027397,2]
[326636457,1715175051954,-313.52848132,0.00027397,2]
[326636482,1715175052179,-220.5413736,0.00012899,2]
[326636484,1715175052193,-73.51859645,0.00027397,2]
[326636486,1715175052203,-500.0,0.00027397,2]
[326636488,1715175052212,-89.59361333,0.00027397,2]
[326636489,1715175052224,-410.40638667,0.00027397,2]
[326636490,1715175052233,-500.0,0.00027397,2]
[326636491,1715175052243,-500.0,0.00027397,2]
[326636492,1715175052252,-500.0,0.00027397,2]
[326636493,1715175052261,-500.0,0.00027397,2]
[326636494,1715175052270,-625.89,0.00027397,2]
[326636495,1715175052279,-500.0,0.00027397,2]
[326636496,1715175052289,-500.0,0.00027397,2]
[326636497,1715175052298,-543.76,0.00027397,2]
[326636498,1715175052307,-1839.15,0.00027397,2]
[326636499,1715175052316,-246.53,0.00027397,2]
[326636500,1715175052326,-677.09420954,0.00027397,2]
[326636501,1715175052410,-1337.93579046,0.00027397,2]
[326636502,1715175052419,-1588.46,0.00027397,2]
[326636503,1715175052434,-1693.09,0.00027397,2]
[326636504,1715175052443,-1512.54,0.00027397,2]
[326636505,1715175052452,-500.0,0.00027397,2]
[326636506,1715175052462,-910.54177121,0.00027397,2]
[326636507,1715175052495,-741.43822879,0.00027397,2]
[326636508,1715175052505,-643.3,0.00027397,2]
[326636509,1715175052514,-500.0,0.00027397,2]
[326636510,1715175052524,-500.0,0.00027397,2]
[326636511,1715175052533,-500.0,0.00027397,2]
[326636512,1715175052542,-500.0,0.00027397,2]
[326636513,1715175052551,-500.0,0.00027397,2]
[326636514,1715175052561,-280.45,0.00027397,2]
[326636515,1715175052572,-500.0,0.00027397,2]
[326636516,1715175052582,-2231.75,0.00027397,2]
[326636517,1715175052592,-397.46,0.00027397,2]
[326636518,1715175052601,-500.0,0.00027397,2]
[326636519,1715175052610,-500.0,0.00027397,2]
[326636520,1715175052619,-500.0,0.00027397,2]
[326636521,1715175052628,-551.44,0.00027397,2]
[326636522,1715175052637,-500.0,0.00027397,2]
[326636523,1715175052646,-150.0,0.00027397,2]
[326636524,1715175052656,-500.0,0.00027397,2]
[326636525,1715175052665,-500.0,0.00027397,2]
[326636526,1715175052674,-500.0,0.00027397,2]
[326636527,1715175052683,-500.0,0.00027397,2]
[326636528,1715175052692,-510.3277514,0.00027397,2]
[326636529,1715175052702,-506.94995003,0.00027397,2]
[326636530,1715175052711,-500.0,0.00027397,2]
[326636531,1715175052719,-505.00601274,0.00027397,2]
[326636532,1715175052728,-500.0,0.00027397,2]
[326636533,1715175052738,-501.94708691,0.00027397,2]
[326636534,1715175052747,-500.0,0.00027397,2]
[326636535,1715175052757,-500.0,0.00027397,2]
[326636536,1715175052766,-500.0,0.00027397,2]
[326636537,1715175052775,-505.40805038,0.00027397,2]
[326636538,1715175052786,-507.84439773,0.00027397,2]
[326636539,1715175052796,-500.0,0.00027397,2]
[326636540,1715175052806,-500.0,0.00027397,2]
[326636541,1715175052815,-500.0,0.00027397,2]
[326636542,1715175052825,-504.72,0.00027397,2]
[326636543,1715175052834,-624.55,0.00027397,2]
[326636544,1715175052843,-508.97776193,0.00027397,2]
[326636545,1715175052852,-198.81,0.00027397,2]
[326636546,1715175052862,-500.0,0.00027397,2]
[326636547,1715175052872,-500.0,0.00027397,2]
[326636548,1715175052881,-156.78,0.00027397,2]
[326636549,1715175052890,-641.21,0.00027397,2]
[326636550,1715175053022,-477.54,0.00027397,2]
[326636551,1715175053031,-500.0,0.00027397,2]
[326636552,1715175053041,-500.0,0.00027397,2]
[326636553,1715175053050,-518.87,0.00027397,2]
[326636554,1715175053059,-1930.79,0.00027397,2]
[326636555,1715175053068,-473.7,0.00027397,2]
[326636556,1715175053078,-500.0,0.00027397,2]
[326636557,1715175053087,-2030.56443152,0.00027397,30]
[326636558,1715175053096,-503.16892723,0.00027397,2]
[326636559,1715175053106,-500.0,0.00027397,2]
[326636560,1715175053116,-3562.07,0.00027397,2]
[326636561,1715175053125,-507.25558195,0.00027397,2]
[326636562,1715175053136,-225.09,0.00027397,2]
[326636563,1715175053145,-500.0,0.00027397,2]
[326636564,1715175053154,-500.0,0.00027397,2]
[326636565,1715175053163,-500.0,0.00027397,2]
[326636566,1715175053172,-504.97990998,0.00027397,2]
[326636567,1715175053181,-350.28,0.00027397,2]
[326636568,1715175053190,-500.0,0.00027397,2]
[326636569,1715175053199,-500.0,0.00027397,2]
[326636570,1715175053208,-500.0,0.00027397,2]
[326636571,1715175053217,-261.62202471,0.00027397,2]
[326636572,1715175053227,-500.0,0.00027397,2]
[326636573,1715175053236,-333.72,0.00027397,2]
[326636574,1715175053245,-472.92,0.00027397,2]
[326636575,1715175053254,-500.0,0.00027397,2]
[326636576,1715175053264,-500.0,0.00027397,2]
[326636577,1715175053273,-500.0,0.00027397,2]
[326636578,1715175053285,-500.0,0.00027397,2]
[326636579,1715175053294,-500.0,0.00027397,2]
[326636580,1715175053304,-500.0,0.00027397,2]
[326636581,1715175053313,-500.0,0.00027397,2]
[326636582,1715175053323,-500.0,0.00027397,2]
[326636583,1715175053332,-500.0,0.00027397,2]
[326636584,1715175053341,-500.0,0.00027397,2]
[326636585,1715175053350,-2490.517006,0.00027397,7]
[326636586,1715175053359,-500.0,0.00027397,2]
[326636587,1715175053369,-500.0,0.00027397,2]
[326636588,1715175053378,-500.0,0.00027397,2]
[326636589,1715175053387,-976.51,0.00027397,2]
[326636590,1715175053396,-500.0,0.00027397,2]
[326636591,1715175053405,-2490.517006,0.00027397,7]
[326636592,1715175053415,-1575.89,0.00027397,2]
[326636593,1715175053424,-500.0,0.00027397,2]
[326636594,1715175053433,-500.0,0.00027397,2]
[326636595,1715175053442,-308.49,0.00027397,2]
[326636596,1715175053453,-1241.78,0.00027397,2]
[326636597,1715175053462,-500.0,0.00027397,2]
[326636598,1715175053471,-500.0,0.00027397,2]
[326636599,1715175053480,-500.0,0.00027397,2]
[326636600,1715175053490,-500.0,0.00027397,2]
[326636601,1715175053499,-660.81,0.00027397,2]
[326636602,1715175053508,-583.81252795,0.00027397,2]
[326636603,1715175053517,-500.0,0.00027397,2]
[326636604,1715175053526,-500.0,0.00027397,2]
[326636605,1715175053535,-1901.61,0.00027397,2]
[326636606,1715175053545,-500.0,0.00027397,2]
[326636607,1715175053554,-500.0,0.00027397,2]
[326636608,1715175053563,-500.0,0.00027397,2]
[326636609,1715175053576,-537.86,0.00027397,2]
[326636610,1715175053586,-500.0,0.00027397,2]
[326636611,1715175053595,-500.0,0.00027397,2]
[326636612,1715175053605,-500.0,0.00027397,2]
[326636613,1715175053614,-500.0,0.00027397,2]
[326636614,1715175053623,-284.91,0.00027397,2]
[326636615,1715175053633,-500.0,0.00027397,2]
[326636616,1715175053642,-408.91,0.00027397,2]
[326636617,1715175053651,-433.59,0.00027397,2]
[326636618,1715175053661,-500.0,0.00027397,2]
[326636619,1715175053670,-2771.58,0.00027397,2]
[326636620,1715175053679,-3338.11,0.00027397,2]
[326636621,1715175053689,-500.0,0.00027397,2]
[326636622,1715175053698,-1173.39,0.00027397,2]
[326636623,1715175053707,-500.0,0.00027397,2]
[326636624,1715175053716,-500.0,0.00027397,2]
[326636625,1715175053727,-500.0,0.00027397,2]
[326636626,1715175053736,-5608.56,0.00027397,2]
[326636627,1715175053745,-500.0,0.00027397,2]
[326636628,1715175053755,-500.0,0.00027397,2]
[326636629,1715175053764,-500.0,0.00027397,2]
[326636630,1715175053773,-2584.09,0.00027397,2]
[326636631,1715175053782,-500.0,0.00027397,2]
[326636632,1715175053792,-500.0,0.00027397,2]
[326636633,1715175053801,-298.46751405,0.00027397,2]
[326636634,1715175053816,-201.53248595,0.00027397,2]
[326636635,1715175053831,-500.0,0.00027397,2]
[326636636,1715175053841,-988.0,0.00027397,4]
[326636637,1715175053851,-500.0,0.00027397,2]
[326636638,1715175053860,-363.5488395,0.00027397,2]
[326636639,1715175053874,-136.4511605,0.00027397,2]
[326636640,1715175053884,-500.0,0.00027397,2]
[326636641,1715175053894,-500.0,0.00027397,2]
[326636642,1715175053903,-1928.64,0.00027397,2]
[326636643,1715175053912,-500.0,0.00027397,2]
[326636644,1715175053922,-500.0,0.00027397,2]
[326636645,1715175053936,-500.0,0.00027397,2]
[326636646,1715175053946,-500.0,0.00027397,2]
[326636647,1715175053955,-500.0,0.00027397,2]
[326636648,1715175053965,-500.0,0.00027397,2]
[326636649,1715175053975,-500.0,0.00027397,2]
[326636650,1715175053984,-500.0,0.00027397,2]
[326636651,1715175053993,-500.0,0.00027397,2]
[326636652,1715175054002,-67.9488563,0.00027397,2]
[326636659,1715176245432,-220.5413736,0.0001208,2]
[326636661,1715176245442,-92.93962647,0.00012081,2]
[326636664,1715176245454,-240.06037353,0.00012081,2]
[326636666,1715176245463,-1623.25968664,0.00012082,2]
[326636668,1715176245472,-313.481,0.00012087,2]
[326636670,1715176245481,-429.55168101,0.00012149,2]
[326636672,1715176245490,-300.0,0.00012281,2]
[326636674,1715176245499,-916.77,0.00012282,2]
[326636675,1715176245508,-700.0,0.000125,4]
[326636677,1715176245517,-1400.0,0.000126,4]